bitfinex/quotes_SOLUSD_20241126
["timestamp","ask_amount","ask_price","bid_price","bid_amount"]
[1732650926461,17.15903777,227.56,227.55,4.5]
[1732650928864,12.76463777,227.57,227.55,4.5]
[1732650929051,12.76463777,227.56,227.55,4.5]
[1732650930542,12.76463777,227.59,227.55,4.5]
[1732650930742,12.76463777,227.59,227.58,4.5]
[1732650932365,17.15843777,227.59,227.58,4.5]
[1732650933369,29.92307554,227.59,227.58,4.5]
[1732650933751,17.15843777,227.59,227.58,4.5]
[1732650934776,17.15843777,227.59,227.55,4.5]
[1732650934777,29.92307554,227.59,227.55,4.5]
[1732650934957,23.776884,227.55,227.51,4.5]
[1732650935150,23.776884,227.55,227.46,4.5]
[1732650935151,32.76463777,227.52,227.46,4.5]
[1732650935360,12.76463777,227.47,227.46,4.5]
[1732650937075,12.76463777,227.51,227.5,4.5]
[1732650937571,32.76463777,227.52,227.5,4.5]
[1732650937982,12.76463777,227.54,227.53,4.5]
[1732650938149,12.76463777,227.56,227.55,4.5]
[1732650939163,12.76463777,227.56,227.53,4.5]
[1732650939365,12.76463777,227.59,227.55,4.5]
[1732650939879,20.0,227.56,227.52,4.5]
[1732650940083,24.3944,227.56,227.53,4.5]
[1732650940267,23.776884,227.55,227.53,4.5]
[1732650940467,12.76463777,227.54,227.51,4.5]
[1732650940686,32.76463777,227.52,227.51,4.5]
[1732650940982,56.54152177,227.52,227.51,4.5]
[1732650941357,32.76463777,227.52,227.51,4.5]
[1732650942384,37.15983777,227.52,227.51,4.5]
[1732650951396,36.65983777,227.52,227.51,4.5]
[1732650952391,32.06657474,227.52,227.51,4.5]
[1732650953985,31.1981,227.63,227.54,4.5]
[1732650954175,4.3932,227.62,227.6,4.5]
[1732650954996,4.3932,227.62,227.58,4.5]
[1732650955302,23.776884,227.58,227.54,4.5]
[1732650955594,20.0,227.55,227.54,4.5]
[1732650955772,20.0,227.55,227.52,4.5]
[1732650955968,20.0,227.55,227.54,4.5]
[1732650956169,32.56597474,227.55,227.54,4.5]
[1732650956398,32.56597474,227.55,227.51,4.5]
[1732650956579,8.17137474,227.52,227.51,4.5]
[1732650958178,12.56657474,227.52,227.51,4.5]
[1732650958474,17.16443092,227.52,227.51,4.5]
[1732650959091,12.76923092,227.52,227.51,4.5]
[1732650960395,17.16443092,227.52,227.51,4.5]
[1732650962187,12.76923092,227.52,227.51,4.5]
[1732650962374,12.76923092,227.54,227.51,4.5]
[1732650962579,20.0,227.55,227.53,4.5]
[1732650963508,12.76923092,227.54,227.53,4.5]
[1732650963888,12.76923092,227.56,227.55,4.5]
[1732650964804,17.16363092,227.56,227.55,4.5]
[1732650967113,12.76923092,227.56,227.55,4.5]
[1732650970712,17.16363092,227.56,227.55,4.5]
[1732650971004,12.76923092,227.56,227.55,4.5]
[1732650971885,12.76923092,227.58,227.57,4.5]
[1732650972407,12.76923092,227.6,227.57,4.5]
[1732650972707,14.67577701,227.63,227.62,4.5]
[1732650972918,0.5,227.72,227.62,4.5]
[1732650972919,94.64948352,227.78,227.64,4.5]
[1732650973087,94.64948352,227.78,227.62,44.8063]
[1732650973088,5.49e-05,227.94,227.91,0.12549]
[1732650973281,12.3908,228.16,228.05,4.5]
[1732650973511,0.5,228.15,228.05,4.5]
[1732650973708,18.10690599,228.2,228.06,68.70699055]
[1732650973885,24.03896644,228.17,228.08,5.0]
[1732650974089,70.0,228.22,228.06,73.70699055]
[1732650974311,70.0,228.19,228.07,41.87298056]
[1732650974500,70.0,228.15,228.0,5.0]
[1732650974697,70.0,228.15,228.01,42.22370469]
[1732650974893,46.27267423,228.18,228.01,42.22370469]
[1732650975209,36.69972821,228.21,228.03,5.0]
[1732650975509,216.11375332,228.28,228.04,21.30853112]
[1732650975510,20.34305057,228.14,228.04,21.30853112]
[1732650975713,20.34305057,228.04,228.03,5.0]
[1732650975919,20.34305057,228.14,228.05,5.0]
[1732650976088,189.70375332,228.28,228.11,133.21854264]
[1732650976288,248.08516012,228.28,228.12,40.05919699]
[1732650976482,20.34305057,228.13,228.12,31.36119699]
[1732650976701,20.34305057,228.13,228.12,28.56309699]
[1732650976911,20.34305057,228.13,228.12,10.74399699]
[1732650977088,20.34305057,228.13,228.12,6.66599699]
[1732650977394,20.34305057,228.13,228.11,133.21854264]
[1732650977600,23.902374,228.12,228.11,128.21514264]
[1732650977894,23.902374,228.12,228.11,118.13004264]
[1732650978087,23.902374,228.12,228.11,113.26934264]
[1732650978406,28.285974,228.12,228.11,113.26934264]
[1732650978792,4.3836,228.12,228.11,113.26934264]
[1732650979192,4.3836,228.12,228.11,118.26934264]
[1732650979589,2.1918,228.12,228.11,118.26934264]
[1732650979888,22.53485057,228.12,228.11,107.41834264]
[1732650980100,22.53485057,228.12,228.11,103.26584264]
[1732650980289,46.43722457,228.12,228.11,103.26584264]
[1732650980489,22.53485057,228.12,228.11,103.26584264]
[1732650981212,22.53485057,228.12,228.11,95.84634264]
[1732650981213,46.43722457,228.12,228.11,95.84634264]
[1732650981688,46.43722457,228.12,228.11,85.41854264]
[1732650982012,46.43722457,228.12,228.11,67.83284264]
[1732650982904,46.43722457,228.12,228.11,50.92519345]
[1732650983103,46.43722457,228.12,228.11,43.76209345]
[1732650983607,46.43722457,228.12,228.11,35.72949345]
[1732650983807,2.1918,228.12,228.11,23.03269345]
[1732650983990,2.1918,228.12,228.11,28.03269345]
[1732650984195,22.53485057,228.12,228.11,28.03269345]
[1732650984507,2.1918,228.12,228.11,33.03269345]
[1732650984911,2.1918,228.12,228.11,28.03269345]
[1732650985208,2.1918,228.12,228.11,33.03269345]
[1732650985589,25.82165057,228.16,228.12,5.0]
[1732650985787,2.1915,228.15,228.12,5.0]
[1732650986114,20.0,228.13,228.12,5.0]
[1732650986499,40.34305057,228.13,228.12,5.0]
[1732650987005,20.0,228.12,228.11,28.03269345]
[1732650987213,20.0,228.12,228.11,33.03269345]
[1732650987512,22.1918,228.12,228.11,33.03269345]
[1732650987894,42.53485057,228.12,228.11,33.03269345]
[1732650988504,42.53485057,228.12,228.11,28.03269345]
[1732650988701,42.53485057,228.12,228.11,33.03269345]
[1732650989091,22.1918,228.12,228.11,33.03269345]
[1732650989299,22.1918,228.12,228.11,28.03269345]
[1732650989613,22.1918,228.12,228.11,33.03269345]
[1732650989790,20.0,228.12,228.11,33.03269345]
[1732650989991,41.65805057,228.12,228.11,33.03269345]
[1732650990207,21.315,228.12,228.11,33.03269345]
[1732650991091,41.65805057,228.12,228.11,33.03269345]
[1732650992114,41.65805057,228.12,228.11,10.0]
[1732650992699,21.315,228.12,228.11,10.0]
[1732650993023,20.34305057,228.18,228.17,5.0]
[1732650993305,20.34305057,228.18,228.16,5.0]
[1732650993512,20.34305057,228.17,228.16,5.0]
[1732650994302,20.34305057,228.17,228.15,5.0]
[1732650994501,20.34305057,228.16,228.15,5.0]
[1732650995020,21.65785057,228.16,228.15,6.7939]
[1732650996021,21.65785057,228.16,228.15,5.0]
[1732650996324,21.65785057,228.16,228.15,6.7939]
[1732650996508,1.3148,228.16,228.15,6.7939]
[1732650996915,21.3148,228.16,228.15,6.7939]
[1732650998093,41.65785057,228.16,228.15,6.7939]
[1732650998720,21.3148,228.16,228.15,6.7939]
[1732651000532,20.0,228.16,228.15,6.7939]
[1732651002117,21.3148,228.16,228.15,6.7939]
[1732651002319,3.2862,228.23,228.22,6.7939]
[1732651002614,15.98100547,228.23,228.21,1.7939]
[1732651002923,12.69480547,228.22,228.2,5.0]
[1732651003127,3.2862,228.23,228.2,5.0]
[1732651003502,27.188574,228.23,228.22,1.7939]
[1732651004410,17.29540547,228.23,228.22,6.7939]
[1732651006005,20.0,228.21,228.17,5.0]
[1732651006324,12.69480547,228.18,228.17,5.0]
[1732651006704,20.0,228.2,228.19,5.0]
[1732651006924,32.69480547,228.2,228.19,5.0]
[1732651008016,34.00940547,228.2,228.19,5.0]
[1732651008804,21.3146,228.2,228.19,5.0]
[1732651009121,34.00940547,228.2,228.19,5.0]
[1732651009730,1.3146,228.2,228.19,5.0]
[1732651010307,1.3145,228.21,228.19,5.0]
[1732651010558,14.00930547,228.21,228.19,5.0]
[1732651010739,1.3145,228.21,228.19,5.0]
[1732651011225,14.00930547,228.21,228.19,5.0]
[1732651011431,12.69480547,228.2,228.19,5.0]
[1732651011635,14.00940547,228.2,228.19,5.0]
[1732651012213,1.3146,228.2,228.19,5.0]
[1732651012434,21.3146,228.2,228.19,5.0]
[1732651013221,1.3146,228.2,228.19,5.0]
[1732651013414,12.69480547,228.23,228.22,5.0]
[1732651013709,12.69480547,228.26,228.24,5.0]
[1732651015415,15.98050547,228.27,228.24,5.0]
[1732651015738,1.3142,228.26,228.24,5.0]
[1732651016231,14.00860547,228.33,228.31,5.0]
[1732651017008,1.3138,228.33,228.31,5.0]
[1732651017437,14.00860547,228.33,228.31,5.0]
[1732651018071,1.3136,228.38,228.37,5.0]
[1732651018243,1.8563549,228.4,228.39,5.0]
[1732651019537,14.55116037,228.4,228.39,5.0]
[1732651019919,1.8563549,228.4,228.39,5.0]
[1732651020737,0.5429549,228.4,228.39,5.0]
[1732651020924,20.81137562,228.4,228.39,5.0]
[1732651021126,1.3135,228.39,228.35,5.0]
[1732651021314,4.5973,228.39,228.35,5.0]
[1732651021939,20.0,228.33,228.3,0.3124]
[1732651022125,21.58242072,228.31,228.3,0.3124]
[1732651022311,20.26842072,228.31,228.3,0.3124]
[1732651022519,1.3139,228.32,228.3,0.3124]
[1732651023639,21.58232072,228.32,228.3,0.3124]
[1732651023825,20.26842072,228.31,228.3,0.3124]
[1732651024135,0.5429549,228.4,228.3,0.3124]
[1732651024355,0.5429549,228.4,228.39,0.3124]
[1732651024356,1.8564549,228.4,228.39,0.3124]
[1732651025643,22.12487562,228.4,228.39,0.3124]
[1732651035148,0.5429549,228.4,228.39,0.3124]
[1732651036030,0.5429549,228.4,228.39,20.58082072]
[1732651036223,20.26842072,228.47,228.39,20.58082072]
[1732651036224,20.26842072,228.47,228.46,0.3124]
[1732651036625,21.58142072,228.47,228.46,0.3124]
[1732651038239,41.84984144,228.47,228.46,0.3124]
[1732651038861,41.84984144,228.47,228.41,0.3124]
[1732651039037,20.26842072,228.42,228.41,0.3124]
[1732651039234,20.26842072,228.42,228.38,0.3124]
[1732651039433,20.26842072,228.39,228.38,0.3124]
[1732651039660,4.5942,228.55,228.43,0.3124]
[1732651039831,4.5942,228.55,228.45,0.3124]
[1732651039832,20.26842072,228.46,228.45,0.3124]
[1732651040764,21.58152072,228.46,228.45,0.3124]
[1732651040966,20.26842072,228.48,228.47,0.3124]
[1732651041159,21.58142072,228.48,228.47,0.3124]
[1732651043555,20.26842072,228.48,228.47,0.3124]
[1732651044356,12.6609254,228.48,228.47,0.3124]
[1732651044659,12.6609254,228.48,228.25,12.6609254]
[1732651044660,21.3131,228.46,228.45,0.3124]
[1732651044837,34.0995154,228.46,228.45,0.3124]
[1732651045157,20.12549,228.45,228.44,0.3124]
[1732651045751,32.7864154,228.45,228.44,0.3124]
[1732651046056,20.0,228.44,228.42,0.3124]
[1732651046358,40.27308929,228.43,228.42,0.3124]
[1732651046558,20.27308929,228.43,228.42,0.3124]
[1732651046744,21.58638929,228.43,228.42,0.3124]
[1732651046945,21.71187929,228.43,228.42,0.3124]
[1732651047146,20.0,228.41,228.38,0.3124]
[1732651047354,20.27308929,228.39,228.38,0.3124]
[1732651047554,20.39857929,228.39,228.38,0.3124]
[1732651048088,20.0,228.37,228.36,0.3124]
[1732651048250,60.67166858,228.37,228.36,0.3124]
[1732651048651,23.902374,228.36,228.3,0.3124]
[1732651048863,20.39857929,228.31,228.3,0.3124]
[1732651049361,20.27308929,228.31,228.3,0.3124]
[1732651050760,21.58708929,228.31,228.3,0.3124]
[1732651055751,20.0,228.33,228.3,0.3124]
[1732651055752,21.08477197,228.66,228.62,5.3124]
[1732651055952,39.990584,228.8,228.53,5.0]
[1732651055953,5.7,228.84,228.7,5.0]
[1732651056166,20.27308929,228.71,228.7,5.0]
[1732651056356,21.27736432,228.71,228.7,5.0]
[1732651056865,21.27736432,228.71,228.59,51.14618929]
[1732651056866,22.58906432,228.71,228.68,5.0]
[1732651057159,40.54617858,228.69,228.68,5.0]
[1732651057355,41.55045361,228.69,228.68,5.0]
[1732651057776,41.55045361,228.69,228.66,5.0]
[1732651057963,41.55045361,228.69,228.53,24.64878929]
[1732651057964,20.27308929,228.67,228.63,5.0]
[1732651058278,20.27308929,228.64,228.61,10.0]
[1732651058573,20.27308929,228.62,228.61,5.0]
[1732651058782,20.27308929,228.62,228.61,10.0]
[1732651059072,21.58528929,228.62,228.61,10.0]
[1732651060163,20.27308929,228.62,228.61,10.0]
[1732651060473,20.27308929,228.62,228.53,24.64868929]
[1732651060474,20.27308929,228.64,228.63,10.0]
[1732651060864,20.27308929,228.66,228.65,5.0]
[1732651061054,1.3119,228.68,228.59,20.27308929]
[1732651061055,20.27308929,228.68,228.67,10.0]
[1732651063663,20.27308929,228.68,228.67,5.0]
[1732651064081,20.0,228.65,228.63,5.0]
[1732651064263,21.58518929,228.64,228.63,5.0]
[1732651065480,21.58488929,228.68,228.66,10.0]
[1732651066860,20.27308929,228.67,228.66,10.0]
[1732651067269,20.27308929,228.69,228.68,10.0]
[1732651067469,4.5895,228.78,228.7,10.0]
[1732651067470,20.27308929,228.71,228.7,10.0]
[1732651070357,44.17546329,228.71,228.7,5.0]
[1732651070562,64.44855258,228.71,228.7,5.0]
[1732651070779,44.17546329,228.71,228.7,10.0]
[1732651070974,44.17546329,228.71,228.7,5.0]
[1732651071567,20.27308929,228.71,228.7,5.0]
[1732651072089,20.27308929,228.71,228.7,10.0]
[1732651072570,20.27308929,228.72,228.7,10.0]
[1732651073386,20.27308929,228.71,228.7,10.0]
[1732651075577,21.58478929,228.71,228.7,10.0]
[1732651076294,65.63476258,228.71,228.7,5.0]
[1732651076493,65.76025258,228.71,228.7,5.0]
[1732651077179,65.76025258,228.71,228.69,5.0]
[1732651077500,25.214074,228.71,228.7,5.0]
[1732651078791,65.76025258,228.71,228.7,5.0]
[1732651079195,65.76025258,228.71,228.68,5.0]
[1732651079375,0.12549,228.67,228.62,5.0]
[1732651079574,23.776884,228.65,228.64,5.0]
[1732651080294,20.0,228.62,228.61,5.0]
[1732651080487,20.0,228.62,228.5,30.156354]
[1732651080488,23.902374,228.61,228.57,5.0]
[1732651080689,60.54617858,228.58,228.57,5.0]
[1732651080888,84.44855258,228.58,228.57,5.0]
[1732651081093,23.776884,228.57,228.54,5.0]
[1732651081296,45.214974,228.54,228.53,5.0]
[1732651081497,65.48806329,228.54,228.53,5.0]
[1732651082200,41.58568929,228.54,228.53,5.0]
[1732651082780,20.27308929,228.56,228.54,5.0]
[1732651083190,20.27308929,228.55,228.54,5.0]
[1732651083802,21.58568929,228.55,228.54,5.0]
[1732651085884,45.36257329,228.55,228.42,35.2508]
[1732651086081,20.27308929,228.43,228.37,12.8048]
[1732651086302,20.27308929,228.39,228.37,12.8048]
[1732651086508,20.27308929,228.47,228.37,12.8048]
[1732651086509,20.27308929,228.38,228.37,12.8048]
[1732651086889,20.27308929,228.39,228.37,12.8048]
[1732651087091,20.27308929,228.38,228.36,30.0956]
[1732651088314,20.27308929,228.39,228.36,30.0956]
[1732651088612,20.27308929,228.38,228.36,30.0956]
[1732651089888,20.27308929,228.39,228.36,30.0956]
[1732651090081,20.27308929,228.38,228.36,30.0956]
[1732651092089,1.3134,228.41,228.36,30.0956]
[1732651092090,20.27308929,228.39,228.36,30.0956]
[1732651092285,20.27308929,228.38,228.36,30.0956]
[1732651092494,20.27308929,228.37,228.31,17.1846]
[1732651093606,20.27308929,228.38,228.33,5.0]
[1732651093809,20.27308929,228.4,228.33,25.27308929]
[1732651094019,20.27308929,228.39,228.33,25.27308929]
[1732651094191,20.27308929,228.4,228.33,20.27308929]
[1732651094516,20.27308929,228.41,228.34,20.27308929]
[1732651094693,20.27308929,228.4,228.33,20.27308929]
[1732651094893,20.27308929,228.37,228.31,17.1846]
[1732651095411,20.27308929,228.39,228.32,25.27308929]
[1732651095611,20.27308929,228.4,228.33,20.27308929]
[1732651096404,20.27308929,228.39,228.33,4.3794]
[1732651096889,20.27308929,228.37,228.33,4.3794]
[1732651097497,20.27308929,228.37,228.32,9.3798]
[1732651097813,20.27308929,228.37,228.32,4.3798]
[1732651098399,12.67064768,228.37,228.32,4.3798]
[1732651099217,4.596,228.45,228.23,47.9743]
[1732651099218,12.67064768,228.33,228.23,47.9743]
[1732651099388,12.67064768,228.28,228.23,47.9743]
[1732651099595,12.67064768,228.29,228.23,47.9743]
[1732651099796,12.67064768,228.28,228.23,47.9743]
[1732651100412,12.67064768,228.25,228.23,31.1333]
[1732651100599,4.5983,228.34,228.19,4.3822]
[1732651100600,12.67064768,228.24,228.19,4.3822]
[1732651100913,12.67064768,228.25,228.19,4.3822]
[1732651101218,23.902374,228.33,228.2,5.0]
[1732651101395,12.67064768,228.26,228.2,5.0]
[1732651101710,12.67064768,228.26,228.21,4.3819]
[1732651101916,12.67064768,228.28,228.22,5.0]
[1732651102416,20.28887551,228.27,228.22,5.0]
[1732651103411,1.3139,228.32,228.18,4.3825]
[1732651103412,20.28887551,228.23,228.18,4.3825]
[1732651103613,20.28887551,228.21,228.18,4.3825]
[1732651103832,20.28887551,228.24,228.18,4.3825]
[1732651104004,20.28887551,228.23,228.18,4.3825]
[1732651104211,20.28887551,228.22,228.18,4.3825]
[1732651104719,20.28887551,228.23,228.18,4.3825]
[1732651104926,20.28887551,228.19,228.12,12.4596]
[1732651105128,20.28887551,228.15,228.12,12.4596]
[1732651105503,20.28887551,228.17,228.12,16.8431]
[1732651105720,20.28887551,228.18,228.12,16.8431]
[1732651107326,20.28887551,228.2,228.13,20.28887551]
[1732651107713,20.28887551,228.25,228.17,20.28887551]
[1732651107899,20.28887551,228.25,228.18,20.28887551]
[1732651108802,20.28887551,228.27,228.19,20.28887551]
[1732651109010,20.28887551,228.27,228.19,25.28887551]
[1732651109212,20.28887551,228.27,228.19,20.28887551]
[1732651109417,20.28887551,228.27,228.19,25.28887551]
[1732651109722,20.28887551,228.27,228.2,24.67097551]
[1732651110034,20.28887551,228.29,228.21,25.28887551]
[1732651110210,20.28887551,228.26,228.2,4.3821]
[1732651110610,20.28887551,228.27,228.21,5.0]
[1732651111231,20.28887551,228.27,228.2,20.28887551]
[1732651111435,1.47786505,228.39,228.23,20.0]
[1732651111639,1.48717125,228.71,228.55,5.0]
[1732651111924,20.28887551,228.64,228.55,25.28887551]
[1732651112328,20.28887551,228.62,228.55,5.0]
[1732651112627,25.28887551,228.8,228.54,1.44604454]
[1732651112628,20.28887551,228.6,228.54,5.0]
[1732651113425,20.28887551,228.6,228.54,9.3756]
[1732651114011,20.28887551,228.61,228.54,9.3756]
[1732651114224,20.28887551,228.69,228.6,20.28887551]
[1732651114403,25.28887551,228.8,228.63,20.28887551]
[1732651114404,20.28887551,228.71,228.63,20.28887551]
[1732651114611,20.28887551,228.72,228.65,20.28887551]
[1732651115612,20.28887551,228.73,228.65,20.28887551]
[1732651115813,20.28887551,228.72,228.65,20.28887551]
[1732651116022,20.28887551,228.71,228.64,20.28887551]
[1732651116317,20.28887551,228.73,228.65,20.28887551]
[1732651116522,20.28887551,228.73,228.66,20.28887551]
[1732651116923,20.28887551,228.75,228.67,20.28887551]
[1732651117126,20.28887551,228.74,228.67,20.28887551]
[1732651117316,20.28887551,228.74,228.62,4.374]
[1732651117317,20.28887551,228.72,228.64,20.28887551]
[1732651117513,20.28887551,228.76,228.69,20.28887551]
[1732651118032,20.28887551,228.74,228.67,20.28887551]
[1732651118410,20.28887551,228.74,228.66,20.28887551]
[1732651118719,20.28887551,228.72,228.64,20.28887551]
[1732651118913,20.28887551,228.72,228.65,20.28887551]
[1732651119833,20.28887551,228.72,228.66,20.28887551]
[1732651120034,20.28887551,228.74,228.67,20.28887551]
[1732651120234,20.28887551,228.74,228.63,20.0]
[1732651120235,20.28887551,228.73,228.66,20.28887551]
[1732651120417,1.7485,228.77,228.66,20.28887551]
[1732651120418,20.28887551,228.72,228.66,20.28887551]
[1732651120634,20.28887551,228.73,228.66,20.28887551]
[1732651122134,20.28887551,228.68,228.61,24.66287551]
[1732651122318,20.28887551,228.68,228.61,29.66287551]
[1732651122914,20.28887551,228.7,228.63,25.28887551]
[1732651123342,20.28887551,228.69,228.63,5.0]
[1732651123825,20.28887551,228.69,228.62,20.28887551]
[1732651124032,20.28887551,228.7,228.63,25.28887551]
[1732651125526,1.7487,228.74,228.63,25.28887551]
[1732651125527,20.28887551,228.74,228.67,20.28887551]
[1732651126343,20.28887551,228.74,228.63,4.3738]
[1732651126344,20.28887551,228.75,228.68,20.28887551]
[1732651127237,20.28887551,228.76,228.69,20.28887551]
[1732651127434,20.28887551,228.75,228.68,24.66167551]
[1732651128426,20.28887551,228.78,228.67,5.0]
[1732651128638,20.28887551,228.78,228.71,20.28887551]
[1732651128827,20.28887551,228.79,228.72,20.28887551]
[1732651129030,20.28887551,228.8,228.73,20.28887551]
[1732651130671,20.28887551,228.8,228.73,24.66077551]
[1732651131028,20.28887551,228.84,228.77,20.28887551]
[1732651131233,20.28887551,228.83,228.76,20.28887551]
[1732651131925,20.28887551,228.84,228.77,20.28887551]
[1732651132127,20.28887551,228.84,228.77,24.65997551]
[1732651132922,20.28887551,228.82,228.77,4.3711]
[1732651133129,20.28887551,228.78,228.71,24.66097551]
[1732651133327,20.28887551,228.77,228.71,4.3721]
[1732651133629,20.28887551,228.78,228.71,4.3721]
[1732651133831,20.28887551,228.78,228.71,24.66097551]
[1732651134839,1.7482,228.81,228.73,20.28887551]
[1732651134840,22.03707551,228.81,228.73,20.28887551]
[1732651135225,22.03707551,228.81,228.73,24.66077551]
[1732651135654,20.28887551,228.82,228.75,20.28887551]
[1732651135827,20.28887551,228.84,228.77,20.28887551]
[1732651136024,20.83183041,228.86,228.79,20.28887551]
[1732651136222,0.5429549,228.86,228.79,20.28887551]
[1732651136422,20.83183041,228.86,228.79,20.28887551]
[1732651136638,20.83183041,228.86,228.74,5.0]
[1732651136639,0.5429549,228.86,228.81,20.28887551]
[1732651137936,0.5429549,228.86,228.81,24.65907551]
[1732651138177,0.5429549,228.86,228.82,20.28887551]
[1732651139234,0.5429549,228.86,228.83,20.28887551]
[1732651139450,0.5429549,228.86,228.81,24.65907551]
[1732651139641,0.5429549,228.86,228.82,20.28887551]
[1732651140030,0.5429549,228.86,228.82,24.65907551]
[1732651140232,0.5429549,228.86,228.82,20.28887551]
[1732651140853,0.5429549,228.86,228.81,4.3703]
[1732651140854,0.5429549,228.86,228.81,24.65917551]
[1732651141042,20.28887551,228.84,228.78,4.3708]
[1732651141248,20.28887551,228.85,228.78,24.65967551]
[1732651141446,0.5429549,228.86,228.78,4.3708]
[1732651141447,20.28887551,228.83,228.78,4.3708]
[1732651141753,2.2907549,228.86,228.74,24.66057551]
[1732651141949,2.2907549,228.86,228.75,20.28887551]
[1732651142144,20.28887551,228.82,228.75,20.28887551]
[1732651142642,20.28887551,228.82,228.74,4.3717]
[1732651142643,0.5429549,228.86,228.81,20.28887551]
[1732651142845,0.5429549,228.86,228.82,20.28887551]
[1732651143344,0.5429549,228.86,228.81,20.28887551]
[1732651144129,0.5429549,228.86,228.8,20.28887551]
[1732651144353,0.5429549,228.86,228.82,20.28887551]
[1732651144543,0.5429549,228.86,228.8,20.28887551]
[1732651144847,0.5429549,228.86,228.77,4.3712]
[1732651144848,20.83183041,228.86,228.79,20.28887551]
[1732651145339,20.28887551,228.85,228.78,20.28887551]
[1732651145539,22.57963041,228.86,228.79,20.28887551]
[1732651145752,20.28887551,228.85,228.78,20.28887551]
[1732651146053,20.28887551,228.84,228.77,4.3712]
[1732651146747,20.28887551,228.84,228.77,20.28887551]
[1732651147355,20.28887551,228.85,228.78,20.28887551]
[1732651147943,20.83183041,228.86,228.79,20.28887551]
[1732651148654,0.5429549,228.86,228.79,20.28887551]
[1732651148858,20.83183041,228.86,228.8,4.3706]
[1732651149153,20.28887551,228.85,228.8,4.3706]
[1732651149660,0.5429549,228.86,228.8,4.3706]
[1732651150046,20.28887551,228.85,228.8,4.3706]
[1732651150660,0.5429549,228.86,228.82,20.28887551]
[1732651151237,0.5429549,228.86,228.83,20.28887551]
[1732651151943,0.5429549,229.08,229.07,5.0]
[1732651152251,13.2864,229.29,229.1,5.0]
[1732651152252,22.03377551,229.23,229.1,5.0]
[1732651152433,20.28887551,229.21,229.13,20.28887551]
[1732651153038,17.6476,229.29,229.13,20.28887551]
[1732651153039,1.7449,229.24,229.13,20.28887551]
[1732651153241,20.28887551,229.21,229.13,20.28887551]
[1732651153646,20.28887551,229.21,229.12,4.3644]
[1732651153647,20.28887551,229.19,229.12,4.3644]
[1732651154455,20.28887551,229.19,229.11,20.28887551]
[1732651154759,1.8143986,229.21,229.11,24.65347551]
[1732651154958,20.28887551,229.19,229.11,24.65347551]
[1732651155460,20.28887551,229.17,229.11,24.65347551]
[1732651155679,20.28887551,229.18,229.11,4.3646]
[1732651156945,20.28887551,229.19,229.12,20.28887551]
[1732651157452,1.8143986,229.21,229.15,20.28887551]
[1732651159374,1.8143986,229.21,229.14,24.65287551]
[1732651159550,1.8143986,229.21,229.17,20.28887551]
[1732651159756,1.8143986,229.21,229.18,0.65423898]
[1732651161548,1.8143986,229.21,229.19,4.3631]
[1732651161743,1.8143986,229.21,229.18,5.01753898]
[1732651161951,1.8143986,229.21,229.16,20.28887551]
[1732651162157,1.8143986,229.21,229.17,4.3635]
[1732651162345,1.8143986,229.21,229.18,0.65425901]
[1732651162953,1.8143986,229.21,229.18,5.01755901]
[1732651163371,1.8143986,229.21,229.18,25.30643452]
[1732651163548,1.8143986,229.21,229.18,5.01755901]
[1732651163869,1.8143986,229.21,229.18,25.30643452]
[1732651164450,1.8143986,229.21,229.18,5.01755901]
[1732651164767,1.8143986,229.21,229.18,4.3633]
[1732651165356,1.8143986,229.21,229.16,24.65247551]
[1732651165667,3.5594986,229.21,229.08,4.3652]
[1732651165978,20.28887551,229.14,229.08,4.3652]
[1732651166151,3.5594986,229.21,229.08,4.3652]
[1732651167253,20.28887551,229.18,229.11,20.28887551]
[1732651167455,20.28887551,229.17,229.11,4.3647]
[1732651167682,20.28887551,229.16,229.11,4.3647]
[1732651168068,20.28887551,229.18,229.11,24.65357551]
[1732651168378,20.28887551,229.17,229.11,4.3647]
[1732651168674,22.10327411,229.17,229.11,4.3647]
[1732651168979,1.8143986,229.17,229.12,20.28887551]
[1732651169274,1.8143986,229.17,229.11,4.3647]
[1732651169275,1.8143986,229.17,229.13,20.28887551]